bitfinex/quotes_BTCUSD_20240605
["timestamp","ask_amount","ask_price","bid_price","bid_amount"]
[1717549173074,0.66745593,70832.0,70831.0,0.000946]
[1717549173284,0.66745593,70832.0,70831.0,0.246846]
[1717549174776,0.67022385,70832.0,70831.0,0.246846]
[1717549175169,0.66942385,70832.0,70831.0,0.246846]
[1717549175368,0.66665593,70832.0,70831.0,0.246846]
[1717549177874,0.95178185,70832.0,70831.0,0.000946]
[1717549186332,1.57310262,70832.0,70831.0,0.000946]
[1717549186591,1.59310262,70832.0,70831.0,0.000946]
[1717549187673,1.64577946,70832.0,70831.0,0.000946]
[1717549187845,1.59310262,70832.0,70831.0,0.000946]
[1717549188087,1.52610262,70832.0,70831.0,0.000946]
[1717549188282,1.57877858,70832.0,70831.0,0.000946]
[1717549188499,1.52610262,70832.0,70831.0,0.000946]
[1717549189115,1.57901462,70832.0,70831.0,0.000946]
[1717549189527,1.55901462,70832.0,70831.0,0.000946]
[1717549189906,1.50610262,70832.0,70831.0,0.000946]
[1717549191547,0.99114462,70832.0,70831.0,0.000946]
[1717549194426,0.97478185,70832.0,70831.0,0.000946]
[1717549194599,0.99115632,70832.0,70831.0,0.000946]
[1717549195004,0.9883884,70832.0,70831.0,0.000946]
[1717549195223,0.6830304,70832.0,70831.0,0.000946]
[1717549195418,0.38429793,70832.0,70831.0,0.159446]
[1717549197302,0.38429793,70832.0,70831.0,0.327046]
[1717549197906,0.38515793,70832.0,70831.0,0.327046]
[1717549198332,0.38515793,70832.0,70831.0,0.404446]
[1717549198531,0.38515793,70832.0,70831.0,0.42167808]
[1717549198855,0.38515793,70832.0,70831.0,0.404446]
[1717549200309,0.10086,70832.0,70831.0,0.404446]
[1717549200506,0.00086,70832.0,70831.0,0.404446]
[1717549200714,0.142039,70832.0,70831.0,0.404446]
[1717549200846,0.242039,70832.0,70831.0,0.404446]
[1717549201194,0.10086,70832.0,70831.0,0.404446]
[1717549201437,0.242039,70832.0,70831.0,0.404446]
[1717549202170,0.242039,70832.0,70831.0,0.236846]
[1717549202171,0.38645793,70832.0,70831.0,0.236846]
[1717549202581,0.38922585,70832.0,70831.0,0.236846]
[1717549202783,0.38645793,70832.0,70831.0,0.236846]
[1717549205225,0.82918385,70832.0,70831.0,0.000946]
[1717549205452,0.93128385,70832.0,70831.0,0.000946]
[1717549208302,0.95128385,70832.0,70831.0,0.000946]
[1717549208500,0.93128385,70832.0,70831.0,0.000946]
[1717549209341,1.24964918,70832.0,70831.0,0.000946]
[1717549209541,1.29192043,70832.0,70831.0,0.000946]
[1717549209867,1.31305606,70832.0,70831.0,0.000946]
[1717549211468,1.22964918,70832.0,70831.0,0.000946]
[1717549212048,1.29305606,70832.0,70831.0,0.000946]
[1717549212669,1.62871406,70832.0,70831.0,0.000946]
[1717549212885,1.93298532,70832.0,70831.0,0.000946]
[1717549213102,1.82730718,70832.0,70831.0,0.000946]
[1717549213305,1.87454638,70832.0,70831.0,0.000946]
[1717549214463,1.89186015,70832.0,70831.0,0.000946]
[1717549214670,1.91186015,70832.0,70831.0,0.000946]
[1717549214830,1.93317052,70832.0,70831.0,0.000946]
[1717549215930,1.82747672,70832.0,70831.0,0.000946]
[1717549216151,1.93316227,70832.0,70831.0,0.000946]
[1717549217241,1.87684741,70832.0,70831.0,0.000946]
[1717549218436,2.07684741,70832.0,70831.0,0.000946]
[1717549219776,1.87684741,70832.0,70831.0,0.000946]
[1717549221230,1.98247908,70832.0,70831.0,0.000946]
[1717549221450,1.93310839,70832.0,70831.0,0.000946]
[1717549221860,1.82747672,70832.0,70831.0,0.000946]
[1717549222419,1.93310839,70832.0,70831.0,0.000946]
[1717549222749,2.13310839,70832.0,70831.0,0.000946]
[1717549223829,2.02747672,70832.0,70831.0,0.000946]
[1717549224032,2.23310839,70832.0,70831.0,0.000946]
[1717549224866,2.03310839,70832.0,70831.0,0.000946]
[1717549225242,2.23310839,70832.0,70831.0,0.000946]
[1717549225802,1.93310839,70832.0,70831.0,0.000946]
[1717549226006,2.03310839,70832.0,70831.0,0.000946]
[1717549226473,1.93310839,70832.0,70831.0,0.000946]
[1717549226684,2.03310839,70832.0,70831.0,0.000946]
[1717549226894,1.92747672,70832.0,70831.0,0.000946]
[1717549227100,1.92747672,70832.0,70816.0,0.067]
[1717549227101,0.42639492,70817.0,70816.0,0.067]
[1717549227311,0.67081385,70817.0,70816.0,0.067]
[1717549232656,0.67081385,70817.0,70816.0,0.067946]
[1717549234857,0.67081385,70817.0,70816.0,0.000946]
[1717549235054,1.44864985,70817.0,70816.0,0.000946]
[1717549235207,0.00276792,70805.0,70804.0,0.2318]
[1717549235448,0.00276792,70805.0,70804.0,0.2988]
[1717549235449,0.28841885,70805.0,70804.0,0.2988]
[1717549235804,0.38841885,70805.0,70804.0,0.2988]
[1717549235945,0.67088385,70805.0,70804.0,0.2988]
[1717549236578,0.95334885,70805.0,70804.0,0.2318]
[1717549236782,0.95334885,70805.0,70801.0,0.004946]
[1717549236783,0.42648292,70802.0,70801.0,0.004946]
[1717549236983,0.67090185,70802.0,70801.0,0.004946]
[1717549237188,0.67090185,70802.0,70801.0,0.071946]
[1717549237936,0.95337885,70802.0,70801.0,0.071946]
[1717549240611,0.66813393,70802.0,70801.0,0.071946]
[1717549240816,0.67090185,70802.0,70801.0,0.310846]
[1717549242071,0.66813393,70802.0,70801.0,0.310846]
[1717549242270,0.38565693,70802.0,70801.0,0.310846]
[1717549243375,0.38842485,70802.0,70801.0,0.310846]
[1717549243997,0.38565693,70802.0,70801.0,0.310846]
[1717549244454,0.06767352,70820.0,70801.0,0.310846]
[1717549244666,0.06767352,70820.0,70818.0,0.0786]
[1717549244667,0.0162627,70819.0,70818.0,0.0786]
[1717549244887,0.01659463,70820.0,70818.0,0.0786]
[1717549245096,0.01659463,70820.0,70818.0,0.1456]
[1717549245305,0.00276792,70824.0,70818.0,0.1456]
[1717549245531,0.141189,70827.0,70825.0,0.067]
[1717549245755,0.00276792,70826.0,70825.0,0.067]
[1717549246151,0.141189,70827.0,70825.0,0.067]
[1717549246569,0.00276792,70826.0,70825.0,0.067]
[1717549246807,0.14718685,70826.0,70825.0,0.067]
[1717549247013,0.28837785,70826.0,70825.0,0.067]
[1717549247138,0.38837785,70826.0,70825.0,0.067]
[1717549247943,0.00276792,70821.0,70818.0,0.0786]
[1717549248378,0.14718685,70821.0,70818.0,0.0786]
[1717549248580,0.00276792,70819.0,70818.0,0.0786]
[1717549248800,0.14718685,70819.0,70818.0,0.0786]
[1717549248999,0.24441893,70819.0,70818.0,0.2461]
[1717549249388,0.1,70819.0,70818.0,0.2461]
[1717549249868,0.1,70819.0,70818.0,0.26333208]
[1717549250182,0.00276792,70824.0,70818.0,0.26333208]
[1717549250338,0.14441893,70823.0,70818.0,0.26333208]
[1717549250543,0.1,70822.0,70818.0,0.2461]
[1717549250721,0.24441893,70822.0,70818.0,0.2461]
[1717549251124,0.24441893,70822.0,70818.0,0.26333208]
[1717549252018,0.24441893,70822.0,70819.0,0.01723208]
[1717549252535,0.24441893,70822.0,70818.0,0.26333208]
[1717549252735,0.24427769,70822.0,70819.0,0.01723208]
[1717549253124,0.24427769,70822.0,70818.0,0.2461]
[1717549254718,0.24427769,70822.0,70818.0,0.26333208]
[1717549254918,0.24427769,70822.0,70819.0,0.01723208]
[1717549255478,0.24427769,70822.0,70820.0,0.01723208]
[1717549255682,0.09985876,70822.0,70821.0,0.17093208]
[1717549255895,0.09985876,70822.0,70819.0,0.07222824]
[1717549255896,0.1,70830.0,70828.0,0.2351]
[1717549256095,0.1,70830.0,70829.0,0.1675]
[1717549257996,0.10276792,70830.0,70829.0,0.1675]
[1717549258399,0.24395092,70830.0,70829.0,0.1675]
[1717549258831,0.241183,70830.0,70829.0,0.1675]
[1717549259369,0.24395092,70830.0,70829.0,0.1675]
[1717549260173,0.241183,70830.0,70829.0,0.1675]
[1717549260377,0.24395092,70830.0,70829.0,0.1675]
[1717549260701,0.38836985,70830.0,70829.0,0.1675]
[1717549262588,0.00276792,70816.0,70812.0,0.1621]
[1717549262803,0.00276792,70815.0,70812.0,0.1621]
[1717549263031,0.61418893,70829.0,70812.0,0.1621]
[1717549263032,0.14398492,70813.0,70812.0,0.1621]
[1717549263289,0.14398492,70813.0,70812.0,0.3296]
[1717549263509,0.14398492,70813.0,70812.0,0.1675]
[1717549263510,0.141217,70813.0,70812.0,0.1675]
[1717549264447,0.28563593,70813.0,70812.0,0.1675]
[1717549266206,0.14122,70811.0,70810.0,0.0813]
[1717549266429,0.14122,70811.0,70810.0,0.2488]
[1717549266652,0.614298,70823.0,70812.0,0.01723208]
[1717549266887,0.00086,70822.0,70821.0,0.2342]
[1717549267151,0.00086,70822.0,70821.0,0.4017]
[1717549267384,0.00086,70822.0,70821.0,0.41893208]
[1717549268224,0.10086,70822.0,70821.0,0.41893208]
[1717549269289,0.00086,70822.0,70821.0,0.41893208]
[1717549269996,0.14204,70832.0,70821.0,0.41893208]
[1717549269997,0.00086,70832.0,70831.0,0.18143208]
[1717549270203,0.00086,70832.0,70831.0,0.1642]
[1717549270389,0.00086,70832.0,70831.0,0.3317]
[1717549271219,0.00086,70832.0,70831.0,0.1642]
[1717549271220,0.10086,70832.0,70831.0,0.1642]
[1717549271424,0.10086,70832.0,70830.0,0.0816]
[1717549271425,0.141181,70831.0,70830.0,0.0816]
[1717549271650,0.10086,70832.0,70830.0,0.0816]
[1717549272307,0.242039,70832.0,70830.0,0.0816]
[1717549273516,0.10086,70832.0,70826.0,0.1675]
[1717549273728,0.10086,70832.0,70826.0,0.18473208]
[1717549273941,0.10086,70832.0,70827.0,0.01723208]
[1717549274155,0.242039,70832.0,70830.0,0.01723208]
[1717549274370,0.242039,70832.0,70826.0,0.18473208]
[1717549274371,0.141181,70831.0,70826.0,0.18473208]
[1717549275018,0.141181,70831.0,70827.0,0.01723208]
[1717549275247,0.141183,70830.0,70826.0,0.18473208]
[1717549275666,0.141185,70829.0,70826.0,0.1675]
[1717549275870,0.141189,70827.0,70824.0,0.2414]
[1717549276486,0.141199,70822.0,70820.0,0.1675]
[1717549276688,0.141202,70821.0,70814.0,0.17043208]
[1717549276895,0.141203,70820.0,70814.0,0.17043208]
[1717549277098,0.141203,70820.0,70814.0,0.1532]
[1717549277303,0.141203,70820.0,70814.0,0.22542824]
[1717549277521,0.141203,70820.0,70814.0,0.24266032]
[1717549277946,0.141203,70820.0,70816.0,0.01723208]
[1717549278157,0.141203,70820.0,70815.0,0.01723208]
[1717549278361,0.141203,70820.0,70816.0,0.01723208]
[1717549278535,0.141203,70820.0,70815.0,0.01723208]
[1717549278746,0.141203,70820.0,70814.0,0.22542824]
[1717549279357,0.141203,70820.0,70815.0,0.01723208]
[1717549280369,0.141203,70820.0,70814.0,0.22542824]
[1717549280560,0.00276792,70822.0,70814.0,0.22542824]
[1717549280796,0.141211,70816.0,70814.0,0.22542824]
[1717549282765,0.141213,70815.0,70814.0,0.07222824]
[1717549291979,0.14398092,70815.0,70814.0,0.07222824]
[1717549292382,0.141213,70815.0,70814.0,0.07222824]
[1717549293084,0.14398092,70815.0,70814.0,0.07222824]
[1717549293298,0.141213,70815.0,70814.0,0.07222824]
[1717549294255,0.141213,70815.0,70814.0,0.14752824]
[1717549294481,0.141213,70815.0,70814.0,0.32976032]
[1717549294686,0.141213,70815.0,70814.0,0.31252824]
[1717549295323,0.141213,70815.0,70814.0,0.32976032]
[1717549298618,0.141213,70815.0,70814.0,0.31252824]
[1717549299298,0.141213,70815.0,70814.0,0.32976032]
[1717549299632,0.141213,70815.0,70814.0,0.07222824]
[1717549300006,0.141213,70815.0,70814.0,0.13922824]
[1717549300472,0.141222,70810.0,70809.0,0.2339]
[1717549300650,0.141222,70810.0,70809.0,0.3009]
[1717549300853,0.141222,70810.0,70809.0,0.31813208]
[1717549300999,0.00276792,70816.0,70809.0,0.31813208]
[1717549301204,0.14397892,70816.0,70815.0,0.067]
[1717549301809,0.141211,70816.0,70815.0,0.067]
[1717549302025,0.141219,70812.0,70809.0,0.25113208]
[1717549302230,0.141219,70812.0,70811.0,0.08423208]
[1717549302644,0.141219,70812.0,70811.0,0.01723208]
[1717549302841,0.141219,70812.0,70811.0,0.08423208]
[1717549303039,0.141219,70812.0,70811.0,0.067]
[1717549303497,0.00276792,70820.0,70812.0,0.0787]
[1717549303810,0.00276792,70820.0,70815.0,0.067]
[1717549303811,0.141211,70816.0,70815.0,0.067]
[1717549306321,0.24718685,70820.0,70813.0,0.22562824]
[1717549306322,0.141215,70814.0,70813.0,0.22562824]
[1717549306485,0.141215,70814.0,70813.0,0.29262824]
[1717549309910,0.141215,70814.0,70813.0,0.13922824]
[1717549312220,0.141215,70814.0,70813.0,0.07222824]
[1717549312556,0.141215,70814.0,70813.0,0.14487616]
[1717549314572,0.141215,70814.0,70813.0,0.067]
[1717549316381,0.141215,70814.0,70813.0,0.08423208]
[1717549316822,0.141215,70814.0,70813.0,0.067]
[1717549317022,0.141215,70814.0,70813.0,0.08423208]
[1717549318389,0.141215,70814.0,70813.0,0.067]
[1717549318590,0.141215,70814.0,70813.0,0.07264807]
[1717549320657,0.1582336,70814.0,70813.0,0.067]
[1717549321406,0.1582336,70814.0,70810.0,0.1599]
[1717549321407,0.14122,70811.0,70810.0,0.1599]
[1717549322637,0.14122,70811.0,70810.0,0.067]
[1717549324637,0.14122,70811.0,70810.0,0.08423208]
[1717549324839,0.14122,70811.0,70810.0,0.14023653]
[1717549325439,0.14122,70811.0,70810.0,0.15746861]
[1717549325860,0.14122,70811.0,70810.0,0.14023653]
[1717549326061,0.14122,70811.0,70810.0,0.15746861]
[1717549326484,0.01687789,70815.0,70812.0,0.01723208]
[1717549326642,0.01687789,70815.0,70810.0,0.14023653]
[1717549326643,0.141215,70814.0,70813.0,0.02288012]
[1717549326841,0.141215,70814.0,70813.0,0.08423208]
[1717549327868,0.1,70818.0,70817.0,0.01723208]
[1717549328070,0.241193,70825.0,70824.0,0.25853208]
[1717549328278,0.1,70825.0,70824.0,0.32553208]
[1717549328487,0.14119,70827.0,70825.0,0.01723208]
[1717549328488,0.1,70826.0,70825.0,0.01723208]
[1717549329040,0.14119,70827.0,70824.0,0.32553208]
[1717549329232,0.141191,70826.0,70825.0,0.067]
[1717549330122,0.141191,70826.0,70825.0,0.08423208]
[1717549330534,0.01776841,70832.0,70825.0,0.067]
[1717549330738,0.141189,70827.0,70825.0,0.067]
[1717549332210,0.141189,70827.0,70825.0,0.08423208]
[1717549332429,0.141189,70827.0,70825.0,0.067]
[1717549332730,0.141191,70826.0,70825.0,0.067]
[1717549334134,0.141191,70826.0,70825.0,0.08423208]
[1717549336051,0.00086,70827.0,70826.0,0.01723208]
[1717549337451,0.00086,70827.0,70826.0,0.45093208]
[1717549337647,0.00886,70827.0,70826.0,0.45193208]
[1717549337850,0.00886,70827.0,70826.0,0.25193208]
[1717549338191,0.00886,70827.0,70826.0,0.45193208]
[1717549339038,0.00086,70827.0,70826.0,0.45093208]
[1717549339468,0.00586,70827.0,70826.0,0.45093208]
[1717549339637,0.00086,70827.0,70826.0,0.45093208]
[1717549340045,0.00286,70827.0,70826.0,0.25093208]
[1717549340207,0.00286,70827.0,70826.0,0.45093208]
[1717549340414,0.00286,70827.0,70826.0,0.25093208]
[1717549340619,0.00286,70827.0,70826.0,0.31793208]
[1717549341242,0.00286,70827.0,70826.0,0.51793208]
[1717549341452,0.00286,70827.0,70826.0,0.65912308]
[1717549342048,0.00086,70827.0,70826.0,0.65912308]
[1717549342488,0.00186,70827.0,70826.0,0.65912308]
[1717549342897,0.00186,70827.0,70826.0,0.45912308]
[1717549344111,0.00186,70827.0,70826.0,0.65912308]
[1717549344495,0.00186,70827.0,70826.0,0.45912308]
[1717549345100,0.00186,70827.0,70826.0,0.65912308]
[1717549347037,0.00186,70827.0,70826.0,0.45912308]
[1717549347258,0.00186,70827.0,70826.0,0.65912308]
[1717549348271,0.00186,70827.0,70826.0,0.80354201]
[1717549350157,0.00186,70827.0,70826.0,1.18592401]
[1717549350509,0.00186,70827.0,70826.0,1.47873694]
[1717549351140,0.00086,70832.0,70831.0,0.35841308]
[1717549351355,0.00086,70832.0,70831.0,0.80793201]
[1717549352546,0.00086,70832.0,70831.0,1.09029401]
[1717549353558,0.00186,70832.0,70831.0,1.09529401]
[1717549354261,0.00086,70832.0,70831.0,1.09029401]
[1717549355668,0.00086,70832.0,70831.0,1.09629401]
[1717549355867,0.00186,70832.0,70831.0,1.09629401]
[1717549357567,0.00186,70832.0,70831.0,1.47865601]
[1717549357704,0.002,70849.0,70842.0,0.15839108]
[1717549357909,0.002,70849.0,70842.0,0.22539108]
[1717549358573,0.002,70849.0,70842.0,0.42539108]
[1717549359198,0.00486,70843.0,70842.0,0.42539108]
[1717549359682,0.00486,70843.0,70842.0,0.22539108]
[1717549361270,0.00486,70843.0,70842.0,0.42539108]
[1717549361977,0.00486,70843.0,70842.0,0.66549108]
[1717549363424,0.00486,70843.0,70842.0,0.46549108]
[1717549363631,0.00486,70843.0,70842.0,0.66549108]
[1717549364011,0.00486,70843.0,70842.0,0.141159]
[1717549364224,0.00486,70843.0,70842.0,0.22539108]
[1717549368560,0.00486,70843.0,70842.0,0.30689108]
[1717549368988,0.00486,70843.0,70842.0,0.22539108]
[1717549372687,0.00464826,70843.0,70842.0,0.22539108]
[1717549377995,0.00464826,70843.0,70841.0,0.01723208]
[1717549378197,0.00464826,70843.0,70842.0,0.08423208]
[1717549379092,0.00464826,70843.0,70842.0,0.01723208]
[1717549379302,0.00064826,70843.0,70842.0,0.08423208]
[1717549379631,0.00464826,70843.0,70842.0,0.08423208]
[1717549380021,0.00064826,70843.0,70842.0,0.08423208]
[1717549380433,0.00464826,70843.0,70842.0,0.08423208]
[1717549383158,0.00464826,70843.0,70842.0,0.15646032]
[1717549384867,0.00464826,70843.0,70842.0,0.08423208]
[1717549389190,0.00464826,70843.0,70842.0,0.15963208]
[1717549389811,0.00464826,70843.0,70842.0,0.09263208]
[1717549390005,0.00464826,70843.0,70842.0,0.15963208]
[1717549391245,0.00464826,70843.0,70842.0,0.067]
[1717549391458,0.16424826,70843.0,70842.0,0.08423208]
[1717549392097,0.00464826,70843.0,70842.0,0.01723208]
[1717549392270,0.00464826,70843.0,70842.0,0.08423208]
[1717549394631,0.00356985,70843.0,70842.0,0.08423208]
[1717549396502,0.00356985,70843.0,70842.0,0.16483208]
[1717549396926,0.02275102,70851.0,70850.0,0.01723208]
[1717549397128,0.224239,70852.0,70851.0,0.01723208]
[1717549397329,0.224239,70852.0,70851.0,0.08423208]
[1717549398255,0.24154485,70852.0,70851.0,0.08423208]
[1717549398889,0.15844485,70852.0,70851.0,0.08423208]
[1717549399092,0.25844485,70852.0,70851.0,0.08523208]
[1717549399244,0.27244485,70852.0,70851.0,0.08523208]
[1717549399677,0.13130585,70852.0,70851.0,0.08523208]
[1717549399852,0.11730585,70852.0,70851.0,0.08423208]
[1717549400089,0.01730585,70852.0,70851.0,0.08423208]
[1717549400317,0.01730585,70852.0,70851.0,0.08523208]
[1717549400318,0.01,70852.0,70851.0,0.08523208]
[1717549402453,0.015,70852.0,70851.0,0.08523208]
[1717549403651,0.01586,70852.0,70851.0,0.08523208]
[1717549406332,0.01586,70852.0,70851.0,0.068]
[1717549406915,0.01586,70852.0,70851.0,0.08523208]
[1717549413635,0.01586,70852.0,70851.0,0.068]
[1717549413881,0.01586,70852.0,70851.0,0.23201837]
[1717549414081,0.01586,70852.0,70851.0,0.001]
[1717549414378,0.01586,70852.0,70851.0,0.08523208]
[1717549414623,0.01586,70852.0,70851.0,0.068]
[1717549415162,0.01586,70852.0,70851.0,0.08523208]
[1717549415368,0.01586,70852.0,70851.0,0.001]
[1717549415369,0.16304685,70852.0,70851.0,0.001]
[1717549415594,0.49907893,70852.0,70851.0,0.068]
[1717549415792,0.48407893,70852.0,70851.0,0.067]
[1717549416175,0.10486,70852.0,70851.0,0.067]
[1717549416395,0.33786,70852.0,70851.0,0.067]
[1717549416799,0.33886,70852.0,70851.0,0.067]
[1717549418825,0.10186,70852.0,70851.0,0.08423208]
[1717549419596,0.10186,70852.0,70851.0,0.01723208]
[1717549419766,0.10186,70852.0,70851.0,0.08423208]
[1717549420422,0.00186,70852.0,70851.0,0.08423208]
[1717549424042,0.00186,70852.0,70843.0,0.01723208]
[1717549424243,0.2362,70851.0,70848.0,0.01723208]
[1717549424558,0.2362,70851.0,70850.0,0.067]
[1717549425223,0.00186,70852.0,70850.0,0.08423208]
[1717549425433,0.00186,70852.0,70851.0,0.01723208]
[1717549426144,0.00186,70852.0,70850.0,0.1442]
[1717549426429,0.00086,70852.0,70851.0,0.01723208]
[1717549427388,0.00186,70852.0,70851.0,0.01723208]
[1717549428009,0.00286,70852.0,70851.0,0.01723208]
[1717549429334,0.00286,70852.0,70851.0,0.24793208]
[1717549430198,0.00286,70852.0,70851.0,0.90572025]
[1717549430633,0.00286,70852.0,70851.0,1.01044059]
[1717549430850,0.00086,70852.0,70851.0,0.06280858]
[1717549431075,0.00086,70852.0,70851.0,0.08423208]
[1717549431280,0.00186,70852.0,70851.0,0.02823208]
[1717549431539,0.00086,70852.0,70851.0,0.08423208]
[1717549432727,0.00078943,70852.0,70851.0,0.08423208]
[1717549432923,0.00178943,70852.0,70851.0,0.09523208]
[1717549433624,0.00178943,70852.0,70851.0,0.47241803]
[1717549435876,0.00178943,70852.0,70851.0,0.67241803]
[1717549437439,0.00178943,70852.0,70851.0,0.81683696]
[1717549438304,0.00178943,70852.0,70851.0,0.61683696]
[1717549439168,0.00178943,70852.0,70851.0,0.81683696]
[1717549441368,0.00178943,70852.0,70851.0,0.85868801]
[1717549441510,0.00178943,70852.0,70851.0,0.85867098]
[1717549441879,0.00178943,70852.0,70851.0,0.87961354]
[1717549442464,0.00178943,70852.0,70851.0,0.81683696]
[1717549442915,0.00178943,70852.0,70851.0,0.61683696]
[1717549443115,0.00178943,70852.0,70851.0,0.81683696]
[1717549443316,0.00178943,70852.0,70851.0,0.85301289]
[1717549444113,0.00178943,70852.0,70851.0,0.85301334]
[1717549444702,0.00178943,70852.0,70851.0,0.81119201]
[1717549445403,0.00178943,70852.0,70851.0,0.85301083]
[1717549445606,0.00178943,70852.0,70851.0,1.13529283]
[1717549445809,0.00178943,70852.0,70851.0,1.156206]
[1717549445964,0.00178943,70852.0,70851.0,1.09347401]
[1717549446411,0.00178943,70852.0,70851.0,1.23528213]
[1717549446632,0.00178943,70852.0,70851.0,1.19347401]
[1717549446823,0.00178943,70852.0,70851.0,1.256206]
[1717549447209,0.00178943,70852.0,70851.0,1.19347401]
[1717549447412,0.00178943,70852.0,70851.0,0.75299386]
[1717549447618,0.00178943,70852.0,70851.0,0.95299386]
[1717549448019,0.00178943,70852.0,70851.0,0.65299386]
[1717549448204,0.00178943,70852.0,70851.0,0.61119201]
[1717549448404,0.00178943,70852.0,70851.0,0.81119201]
[1717549449738,0.00178943,70852.0,70851.0,0.95755161]
[1717549449938,0.004,70859.0,70858.0,0.35835908]
[1717549450150,0.004,70859.0,70858.0,0.95143761]
[1717549450356,0.004,70859.0,70858.0,0.71613761]
[1717549450946,0.004,70859.0,70858.0,0.51613761]
[1717549453262,0.009,70859.0,70858.0,0.51613761]
[1717549453520,0.009,70859.0,70858.0,0.76093761]
[1717549454959,0.009,70859.0,70858.0,1.24319161]
[1717549455163,0.002,70869.0,70868.0,0.01723208]
[1717549455367,0.002,70869.0,70868.0,0.23098253]
[1717549455564,0.002,70869.0,70868.0,0.37732584]
[1717549456533,0.016,70869.0,70868.0,0.37832584]
[1717549456790,0.016,70869.0,70868.0,0.37268142]
[1717549460940,0.016,70869.0,70868.0,0.51610035]
[1717549460941,0.002,70869.0,70868.0,0.51610035]
[1717549461781,0.002,70869.0,70868.0,0.71610035]
[1717549462580,0.002,70869.0,70868.0,0.51610035]
[1717549463215,0.002,70869.0,70868.0,0.71610035]
[1717549463620,0.002,70869.0,70868.0,0.51610035]
[1717549465253,0.2319,70869.0,70868.0,0.14634234]
[1717549465457,0.2319,70869.0,70868.0,0.21334234]
[1717549466364,0.2319,70869.0,70868.0,0.23057442]
[1717549466766,0.2319,70869.0,70868.0,0.21334234]
[1717549468925,0.002,70869.0,70868.0,0.23057442]
[1717549470442,0.00286,70869.0,70868.0,0.23057442]
[1717549471848,0.00286,70869.0,70868.0,0.35444934]
[1717549472066,0.00286,70869.0,70868.0,0.37168142]
[1717549472921,0.00286,70869.0,70868.0,0.35444934]
[1717549473679,0.00286,70869.0,70868.0,0.37168142]
[1717549475371,0.00286,70869.0,70868.0,0.61338142]
[1717549475581,0.00286,70869.0,70868.0,0.51610035]
[1717549475791,0.00286,70869.0,70868.0,0.75780035]
[1717549476830,0.00286,70869.0,70868.0,0.95780035]
[1717549477034,0.00286,70869.0,70868.0,0.75780035]
[1717549477263,0.00286,70869.0,70868.0,0.95779574]
[1717549477603,0.00286,70869.0,70868.0,0.96979574]
[1717549477728,0.00386,70869.0,70868.0,0.96979574]
[1717549478214,0.00386,70869.0,70868.0,0.82345801]
[1717549478414,0.00386,70869.0,70868.0,0.96979443]
[1717549478804,0.00386,70869.0,70868.0,0.96979429]
[1717549479006,0.00286,70869.0,70868.0,0.75779429]
[1717549479207,0.00386,70869.0,70868.0,0.77179429]
[1717549479418,0.00386,70869.0,70868.0,0.97179429]
[1717549481028,0.00386,70869.0,70868.0,0.82545801]
[1717549481608,0.00386,70869.0,70868.0,1.20767201]
[1717549485811,0.00386,70869.0,70868.0,1.53170077]
[1717549486014,0.00386,70869.0,70868.0,1.48988601]
[1717549486433,0.00386,70869.0,70868.0,1.57352726]
[1717549486632,0.00386,70869.0,70868.0,1.48988601]
[1717549488061,0.00386,70869.0,70868.0,1.58988601]
[1717549488493,0.00386,70869.0,70868.0,1.67352726]
[1717549489925,0.00086,70871.0,70870.0,1.02274708]
[1717549490162,0.1656,70887.0,70886.0,0.01723208]
[1717549491280,0.00562,70891.0,70890.0,0.01723208]
[1717549491480,0.00562,70891.0,70890.0,0.08423208]
[1717549491692,0.00562,70891.0,70890.0,0.22529508]
[1717549491923,0.00562,70891.0,70890.0,0.24624239]
[1717549492058,0.00562,70891.0,70890.0,0.22529508]
[1717549492266,0.00562,70891.0,70890.0,0.24623839]
[1717549492481,0.00562,70891.0,70890.0,0.22529508]
[1717549492681,0.00562,70891.0,70890.0,0.208063]
[1717549493092,0.08622,70891.0,70890.0,0.208063]
[1717549493297,0.08622,70891.0,70890.0,0.001]
[1717549493298,0.25828792,70891.0,70890.0,0.001]
[1717549493780,0.25552,70891.0,70890.0,0.001]
[1717549493985,0.25828792,70891.0,70890.0,0.001]
[1717549494236,0.25552,70891.0,70890.0,0.001]
[1717549494438,0.25828792,70891.0,70890.0,0.001]
[1717549494696,0.25828792,70891.0,70890.0,0.068]
[1717549495891,0.39934892,70891.0,70890.0,0.001]
[1717549496097,0.49934892,70891.0,70890.0,0.001]
[1717549496498,0.51934892,70891.0,70890.0,0.001]
[1717549496666,0.49934892,70891.0,70890.0,0.001]
[1717549497124,0.51934892,70891.0,70890.0,0.001]
[1717549497270,0.49934892,70891.0,70890.0,0.001]
[1717549500503,0.496581,70891.0,70890.0,0.068]
[1717549500708,0.49934892,70891.0,70890.0,0.068]
[1717549501430,0.496581,70891.0,70890.0,0.068]
[1717549502451,0.49934892,70891.0,70890.0,0.068]
[1717549504128,0.496581,70891.0,70890.0,0.068]
[1717549505445,0.49934892,70891.0,70890.0,0.001]
[1717549505650,0.49934892,70891.0,70890.0,0.068]
[1717549506286,0.49934892,70891.0,70890.0,0.001]
[1717549506705,0.94589085,70891.0,70890.0,0.001]
[1717549507151,1.22801385,70891.0,70890.0,0.001]
[1717549507402,1.36025865,70891.0,70890.0,0.001]
[1717549507622,1.31801385,70891.0,70890.0,0.001]
[1717549508024,1.25101385,70891.0,70890.0,0.001]
[1717549508527,1.31435612,70891.0,70890.0,0.001]
[1717549509349,1.25101385,70891.0,70890.0,0.001]
[1717549509923,0.00276792,70864.0,70859.0,0.000946]
[1717549510131,0.36048292,70864.0,70863.0,0.43336945]
[1717549510329,0.36048292,70864.0,70859.0,0.000946]
[1717549510330,0.14389092,70860.0,70859.0,0.000946]
[1717549511184,0.49919092,70860.0,70859.0,0.000946]
[1717549511594,0.64360985,70860.0,70859.0,0.000946]
[1717549511795,0.92585585,70860.0,70859.0,0.000946]
[1717549511967,0.92585585,70860.0,70859.0,0.001946]
[1717549512378,0.92585585,70860.0,70859.0,0.000946]
[1717549512638,0.92585585,70860.0,70859.0,0.001946]
[1717549512843,0.94885585,70860.0,70859.0,0.001946]
[1717549513015,0.94885585,70860.0,70859.0,0.000946]